Workbook

Sheet Tabella articolo 3
A1: AMBITI DI INTERVENTO | B1: Assegnazione FSC 21-27 | E1: Cofinanziamenti nuovi interventi | I1: Ammontare complessivo investimenti | J1: Numero interventi/linee di azione | K1: Altre assegnazioni
B2: Risorse FSC 21-27 (ass. ordinaria) | C2: (1) Risorse FSC 21-27 (Anticipazione) | D2: Totale Assegnazione FSC 21-27 | E2: Altre Risorse Ordinarie Regionali e Locali | F2: Altre Risorse Ordinarie Nazionali | G2: Privati | H2: Totale Co-finanziamento con altre risorse | K2: FSC 14-20 (economie) (D) | L2: FdR Legge 183/87 (POC) (E)
L3: 2014-2020 | M3: 2021-2027
A4: Ricerca e innovazione | B4: 15,000,000.00 | D4: =SUM(B4:C4) -> 15,000,000.00 | F4: 16,878,000.00 | H4: =SUM(E4:G4) -> 16,878,000.00 | I4: =H4+D4 -> 31,878,000.00 | J4: 1
A5: Trasporti e mobilità | B5: 272,240,127.91 | C5: 185,200,000.00 | D5: =SUM(B5:C5) -> 457,440,127.91 | E5: 21,272,557.09 | F5: 3,500,000.00 | H5: =SUM(E5:G5) -> 24,772,557.09 | I5: =H5+D5 -> 482,212,685.00 | J5: 5
A6: Riqualificazione urbana | B6: 363,603,522.43 | D6: =SUM(B6:C6) -> 363,603,522.43 | E6: 150,396,477.57 | G6: 285,000,000.00 | H6: =SUM(E6:G6) -> 435,396,477.57 | I6: =H6+D6 -> 799,000,000.00 | J6: 5
A7: Istruzione e formazione * | B7: 56,600,000.00 | D7: =SUM(B7:C7) -> 56,600,000.00 | F7: 73,000,000.00 | H7: =SUM(E7:G7) -> 73,000,000.00 | I7: =H7+D7 -> 129,600,000.00 | J7: 2
A8: Capacità amministrativa | B8: 2,000,000.00 | D8: =SUM(B8:C8) -> 2,000,000.00 | H8: =SUM(E8:G8) -> 0 | I8: =H8+D8 -> 2,000,000.00 | J8: 1
A9: Totale Ambiti di Intervento | B9: =SUM(B4:B8) -> 709,443,650.34 | C9: =SUM(C4:C8) -> 185,200,000.00 | D9: =SUM(D4:D8) -> 894,643,650.34 | E9: =SUM(E4:E8) -> 171,669,034.66 | F9: =SUM(F4:F8) -> 93,378,000.00 | G9: =SUM(G4:G8) -> 285,000,000.00 | H9: =SUM(H4:H8) -> 550,047,034.66 | I9: =SUM(I4:I8) -> 1,444,690,685.00 | J9: =SUM(J4:J8) -> 14
A10: Cofinanziamento PR (ove applicabile) | B10: 315,662,128.50 | D10: =SUM(B10:C10) -> 315,662,128.50
A11: Totale Assegnazione FSC 21-27 | B11: =B9+B10 -> 1,025,105,778.84 | C11: =C9+C10 -> 185,200,000.00 | D11: =D9+D10 -> 1,210,305,778.84 | K11: =SUM(K4:K10) -> 0 | L11: =SUM(L4:L10) -> 0 | M11: =SUM(M4:M10) -> 0
A13: (1) Risorse già assegnate: anticipazioni disposte con delibere CIPESS; assegnate con provvedimenti di legge; ecc. - Include anche le risorse definanziate ex Delibera 16/2023 e riprogrammate
A16: * Le risorse Ordinarie Nazionali comprendono 38 M a carico del Politecnico di Milano

Sheet Allegato A1_elenco interventi
A1: Accordo per la Coesione Governo - Regione Lombardia Allegato A1 Programma di interventi e le linee di azione con cronoprogramma procedurale
A3: ID | B3: AMMINISTRAZIONE | C3: AREATEMATICA | D3: LINEA DI INTERVENTO | E3: CUP | F3: TITOLO | G3: COSTO TOTALE | H3: IMPORTO RICHIESTO FSC 21-27 | I3: COFINANZIAMENTO CON ALTRE RISORSE | J3: PROGRAMMAZIONE PREVISIONE INIZIO | K3: PROGRAMMAZIONE PREVISIONE FINE | L3: PROGETTAZIONE PREVISIONE INIZIO | M3: PROGETTAZIONE PREVISIONE FINE | N3: ESECUZIONE PREVISIONE INIZIO | O3: ESECUZIONE PREVISIONE FINE
A4: FSCRI_RI_450 | B4: UNIVERSITA' DEGLI STUDI DI MILANO | C4: O1.RICERCA E INNOVAZIONE | D4: 01.02 STRUTTURE DL RICERCA | E4: G44D22007130006 | F4: NUOVO CAMPUS DELL'UNIVERSITA' DEGLI STUDI DI MILANO. ALLESTIMENTI | G4: 31,878,000.00 | H4: 15,000,000.00 | I4: 16,878,000.00 | L4: 2_SEMESTRE_2024 | M4: 1_SEMESTRE 2025 | N4: 1_SEMESTRE_2025 | O4: 2_SEMESTRE_2027
A5: FSCRI_RI_490 | B5: PROVINCIA DI SONDRIO | C5: 07.TRASPORTI E MOBILITÀ | D5: 07.01 TRASPORTO STRADALE | E5: C37H16001370001 | F5: VARIANTE ALLA S.P. N. 2 TRIVULZIA IN COMUNE DI SAMOLACO TRA PONTE NAVE E PONTE SAN PIETRO | G5: 8,400,000.00 | H5: 1,127,442.91 | I5: 7,272,557.09 | N5: 2_SEMESTRE_2023 | O5: 1_SEMESTRE_2026
A6: 40DCDBC7 | B6: REGIONE LOMBARDIA CHE SI AVVALE DEL SOGGETTO CONCESSIONARIO FERROVIENORD SPA (SOGGETTO ATTUATORE) | C6: 07.TRASPORTI E MOBILITÀ | D6: 07.02 TRASPORTO FERROVIARIO | E6: E80F23000000003 | F6: ACQUISTO TRENI PER IL SERVIZIO FERROVIARIO REGIONALE | G6: 160,000,000.00 | H6: 146,000,000.00 | I6: 14,000,000.00 | L6: 1_SEMESTRE_2024 | M6: 2_SEMESTRE_2024 | N6: 1_SEMESTRE_2025 | O6: 2_SEMESTRE_2029
A7: FSCRI_RI_493 | B7: CONSERVATORIO “GIUSEPPE VERDI” DI MILANO | C7: 11.ISTRUZIONE E FORMAZIONE | D7: 11.01 STRUTTURE EDUCATIVE E FORMATIVE | E7: D45B22000290003 | F7: BOSCO DELLA MUSICA – NUOVO CAMPUS DEL CONSERVATORIO DI MILANO | G7: 61,600,000.00 | H7: 26,600,000.00 | I7: 35,000,000.00 | L7: 1_SEMESTRE_2023 | M7: 2_SEMESTRE_2024 | N7: 1_SEMESTRE_2025 | O7: 2_SEMESTRE_2027
A8: FSCRI_RI_499 | B8: FERROVIENORD SPA | C8: 08.RIQUALIFICAZIONE URBANA | D8: 08.01 EDILIZIA E SPAZI PUBBLICI | E8: E41G23000220008 | F8: PROGETTO FILI – RIGENERAZIONE URBANA DELL’AREA DELLA STAZIONE DI MILANO CADORNA | G8: 435,000,000.00 | H8: 150,000,000.00 | I8: 285,000,000.00 | J8: 1_SEMESTRE_2023 | K8: 2_SEMESTRE_2023 | L8: 1_SEMESTRE_2024 | M8: 1_SEMESTRE_2025 | N8: 2_SEMESTRE_2025 | O8: 2_SEMESTRE_2030
A9: FSCRI_RI_501 | B9: REGIONE LOMBARDIA | C9: 12.CAPACITÀ AMMINISTRATIVA | D9: 12.02 ASSISTENZA TECNICA | F9: ASSISTENZA TECNICA | G9: 2,000,000.00 | H9: 2,000,000.00 | L9: 1_SEMESTRE_2024 | M9: 2_SEMESTRE_2028 | N9: 1_SEMESTRE_2025 | O9: 2_SEMESTRE_2029
A10: FSCRI_RI_502 | B10: REGIONE LOMBARDIA | C10: 08.RIQUALIFICAZIONE URBANA | D10: 08.01 EDILIZIA E SPAZI PUBBLICI | F10: LINEA DI INTERVENTO STRATEGIE DI SVILUPPO URBANO SOSTENIBILE | G10: 30,000,000.00 | H10: 30,000,000.00 | J10: 1_SEMESTRE_2023 | K10: 2_SEMESTRE_2023 | L10: 1_SEMESTRE_2024 | M10: 2_SEMESTRE_2025 | N10: 2_SEMESTRE_2024 | O10: 1_SEMESTRE_2027
A11: FSCRI_RI_1877 | B11: REGIONE LOMBARDIA CHE SI AVVALE DI FNM SPA (SOGGETTO ATTUATORE) | C11: 07.TRASPORTI E MOBILITÀ | D11: 07.02 TRASPORTO FERROVIARIO | E11: F70F24000000003 | F11: PROGETTO “H2ISEO” - ACQUISTO TRENI AD IDROGENO | G11: 68,612,685.00 | H11: 68,612,685.00 | L11: 1_SEMESTRE_2024 | M11: 2_SEMESTRE_2024 | N11: 1_SEMESTRE_2025 | O11: 2_SEMESTRE_2027
A12: FSCRI_RI_519 | B12: POLITECNICO DI MILANO | C12: 11.ISTRUZIONE E FORMAZIONE | D12: 11.01 STRUTTURE EDUCATIVE E FORMATIVE | E12: D45E22000140005 | F12: REALIZZAZIONE EDIFICI E AULE NEL NUOVO CAMPUS DEL POLITECNICO A BOVISA – MILANO | G12: 68,000,000.00 | H12: 30,000,000.00 | I12: 38,000,000.00 | J12: 1_SEMESTRE_2023 | K12: 2_SEMESTRE_2023 | L12: 2_SEMESTRE_2023 | M12: 2_SEMESTRE_2024 | N12: 1_SEMESTRE_2025 | O12: 2_SEMESTRE_2027
A13: FSCRI_RI_521 | B13: FERROVIENORD SPA | C13: 08.RIQUALIFICAZIONE URBANA | D13: 08.01 EDILIZIA E SPAZI PUBBLICI | E13: E41G23000230001 | F13: PROGETTO FILI – RIQUALIFICAZIONE URBANA A BUSTO ARSIZIO | G13: 26,000,000.00 | H13: 26,000,000.00 | L13: 1_SEMESTRE_2024 | M13: 2_SEMESTRE_2026 | N13: 2_SEMESTRE_2025 | O13: 2_SEMESTRE_2029
A14: FSCRI_RI_548 | B14: UNIVERSITA' DGLI STUDI DI PAVIA | C14: 08.RIQUALIFICAZIONE URBANA | D14: 08.01 EDILIZIA E SPAZI PUBBLICI | E14: F11B21006970005 | F14: RIGENERAZIONE URBANA DEL POLO DI CHIMICA E SCIENZE DEL FARMACO DELL’UNIVERSITÀ DI PAVIA | G14: 10,000,000.00 | H14: 5,500,000.00 | I14: 4,500,000.00 | J14: 2_SEMESTRE_2023 | K14: 1_SEMESTRE_2025 | L14: 2_SEMESTRE_2025 | M14: 1_SEMESTRE_2026 | N14: 2_SEMESTRE_2026 | O14: 1_SEMESTRE_2028
A15: FSCRI_RI_628 | B15: REGIONE LOMBARDIA ATTRAVERSO LA SUA SOCIETA' IN HOUSE ARIA SPA | C15: 08.RIQUALIFICAZIONE URBANA | D15: 08.01 EDILIZIA E SPAZI PUBBLICI | E15: G45B23000700003 | F15: RIQUALIFICAZIONE COMPLESSO IMMOBILIARE “PALAZZO SISTEMA” SEDE DEGLI ENTI DEL SISTEMA REGIONALE | G15: 298,000,000.00 | H15: 152,103,522.43 | I15: 145,896,477.57 | L15: 2_SEMESTRE_2024 | M15: 2_SEMESTRE_2025 | N15: 2_SEMESTRE_2026 | O15: 1_SEMESTRE_2030
A16: FSCRI_RI_1638 | B16: ANAS | C16: 07.TRASPORTI E MOBILITÀ | D16: 07.01 TRASPORTO STRADALE | E16: F57H16001660001 | F16: SS12 NUOVO IMPALCATO STRADALE IN SOSTITUZIONE DI QUELLI ESISTENTI SUL PO AD OSTIGLIA E REVERE | G16: 60,000,000.00 | H16: 56,500,000.00 | I16: 3,500,000.00 | L16: 2_SEMESTRE_2023 | M16: 1_SEMESTRE_2026 | N16: 2_SEMESTRE_2026 | O16: 2_SEMESTRE_2028
G17: =SUM(G4:G16) -> 1,259,490,685.00 | H17: =SUM(H4:H16) -> 709,443,650.34 | I17: =SUM(I4:I16) -> 550,047,034.66

Sheet Allegato A2_Anticipazioni
A1: Accordo per la Coesione Governo - Regione Lombardia Allegato A2 Elenco interventi finanziati in anticipazione FSC 21-27
A3: AREATEMATICA | B3: LINEA DI INTERVENTO | C3: CUP | D3: TITOLO | E3: IMPORTO FSC 21-27
A4: Trasporti e mobilità | B4: TRASPORTO FERROVIARIO | C4: E80D17000010003 | D4: Acquisto 26 treni per il servizio ferroviario regionale | E4: 185,200,000.00

Sheet Allegato B1_Piano fin. accordo
A1: Accordo per la Coesione Governo - Regione Lombardia Allegato B1 - Piano finanziario di spesa dell’Accordo per annualità (solo quota FSC 21-27 ordinaria)
B2: 2022 | C2: 2023 | D2: 2024 | E2: 2025 | F2: 2026 | G2: 2027 | H2: 2028 | I2: 2029 | J2: 2030 | K2: 2031 | L2: Totale
A3: Assegnazione ordinaria FSC 21-27 | B3: 0 | C3: 0 | D3: ='[1]Allegato B2_Piano fin interv'!J17 -> 2,408,176.00 | E3: ='[1]Allegato B2_Piano fin interv'!K17 -> 31,154,214.60 | F3: ='[1]Allegato B2_Piano fin interv'!L17 -> 62,678,931.92 | G3: ='[1]Allegato B2_Piano fin interv'!M17 -> 143,739,078.13 | H3: ='[1]Allegato B2_Piano fin interv'!N17 -> 306,365,051.20 | I3: ='[1]Allegato B2_Piano fin interv'!O17 -> 99,774,198.49 | J3: ='[1]Allegato B2_Piano fin interv'!P17 -> 45,684,000.00 | K3: ='[1]Allegato B2_Piano fin interv'!Q17 -> 17,640,000.00 | L3: =SUM(D3:K3) -> 709,443,650.34

Sheet Allegato B2_Piano fin interv
A1: Accordo per la Coesione Governo - Regione Lombardia Allegato B2 - Piano finanziario di spesa per singolo intervento (solo quota FSC 21-27 ordinaria)
A3: ID | B3: AMMINISTRAZIONE | C3: AREATEMATICA | D3: LINEA DI INTERVENTO | E3: CUP | F3: TITOLO | G3: COSTO TOTALE | H3: IMPORTO RICHIESTO FSC 21-27 | I3: COFINANZIAMENTO CON ALTRE RISORSE | J3: 2023 | K3: 2024 | L3: 2025 | M3: 2026 | N3: 2027 | O3: 2028 | P3: 2029 | Q3: 2030 | R3: 2031 | S3: 2032 | T3: 2033 | U3: 2034 | V3: 2035
A4: FSCRI_RI_450 | B4: UNIVERSITA' DEGLI STUDI DI MILANO | C4: O1.RICERCA E INNOVAZIONE | D4: 01.02 STRUTTURE DL RICERCA | E4: G44D22007130006 | F4: NUOVO CAMPUS DELL'UNIVERSITA' DEGLI STUDI DI MILANO. ALLESTIMENTI | G4: 31,878,000.00 | H4: 15,000,000.00 | I4: 16,878,000.00 | K4: 0 | L4: 211,267.60 | M4: 528,169.01 | N4: 4,753,521.13 | O4: 7,394,366.20 | P4: 2,112,676.06 | Q4: 0
A5: FSCRI_RI_490 | B5: PROVINCIA DI SONDRIO | C5: 07.TRASPORTI E MOBILITÀ | D5: 07.01 TRASPORTO STRADALE | E5: C37H16001370001 | F5: VARIANTE ALLA S.P. N. 2 TRIVULZIA IN COMUNE DI SAMOLACO TRA PONTE NAVE E PONTE SAN PIETRO * | G5: 8,400,000.00 | H5: 1,127,442.91 | I5: 7,272,557.09 | K5: 212,000.00 | L5: 576,000.00 | M5: 339,442.91 | N5: 0 | O5: 0 | P5: 0 | Q5: 0
A6: 40DCDBC7 | B6: REGIONE LOMBARDIA CHE SI AVVALE DEL SOGGETTO CONCESSIONARIO FERROVIENORD SPA (SOGGETTO ATTUATORE) | C6: 07.TRASPORTI E MOBILITÀ | D6: 07.02 TRASPORTO FERROVIARIO | E6: E80F23000000003 | F6: ACQUISTO TRENI PER IL SERVIZIO FERROVIARIO REGIONALE | G6: 160,000,000.00 | H6: 146,000,000.00 | I6: 14,000,000.00 | K6: 0 | M6: 14,600,000.00 | N6: 0 | O6: 116,800,000.00 | P6: 14,600,000.00 | Q6: 0
A7: FSCRI_RI_493 | B7: CONSERVATORIO “GIUSEPPE VERDI” DI MILANO | C7: 11.ISTRUZIONE E FORMAZIONE | D7: 11.01 STRUTTURE EDUCATIVE E FORMATIVE | E7: D45B22000290003 | F7: BOSCO DELLA MUSICA – NUOVO CAMPUS DEL CONSERVATORIO DI MILANO ** | G7: 61,600,000.00 | H7: 26,600,000.00 | I7: 35,000,000.00 | L7: 9,715,000.00 | M7: 8,636,000.00 | N7: 8,249,000.00 | O7: 0 | P7: 0 | Q7: 0
A8: FSCRI_RI_499 | B8: FERROVIENORD SPA | C8: 08.RIQUALIFICAZIONE URBANA | D8: 08.01 EDILIZIA E SPAZI PUBBLICI | E8: E41G23000220008 | F8: PROGETTO FILI – RIGENERAZIONE URBANA DELL’AREA DELLA STAZIONE DI MILANO CADORNA | G8: 435,000,000.00 | H8: 150,000,000.00 | I8: 285,000,000.00 | K8: 0 | L8: 0 | N8: 3,750,000.00 | O8: 34,260,000.00 | P8: 49,770,000.00 | Q8: 44,580,000.00 | R8: 17,640,000.00
A9: FSCRI_RI_501 | B9: REGIONE LOMBARDIA | C9: 12.CAPACITÀ AMMINISTRATIVA | D9: 12.02 ASSISTENZA TECNICA | F9: ASSISTENZA TECNICA | G9: 2,000,000.00 | H9: 2,000,000.00 | L9: 400,000.00 | M9: 380,000.00 | N9: 380,000.00 | O9: 380,000.00 | P9: 280,000.00 | Q9: 180,000.00
A10: FSCRI_RI_502 | B10: REGIONE LOMBARDIA | C10: 08.RIQUALIFICAZIONE URBANA | D10: 08.01 EDILIZIA E SPAZI PUBBLICI | F10: LINEA DI INTERVENTO STRATEGIE DI SVILUPPO URBANO SOSTENIBILE | G10: 30,000,000.00 | H10: 30,000,000.00 | K10: 0 | L10: 0 | N10: 15,000,000.00 | O10: 15,000,000.00 | P10: 0 | Q10: 0
A11: FSCRI_RI_1877 | B11: REGIONE LOMBARDIA CHE SI AVVALE DI FNM SPA (SOGGETTO ATTUATORE) | C11: 07.TRASPORTI E MOBILITÀ | D11: 07.02 TRASPORTO FERROVIARIO | E11: F70F24000000003 | F11: PROGETTO “H2ISEO” - ACQUISTO TRENI AD IDROGENO | G11: 68,612,685.00 | H11: 68,612,685.00 | K11: 0 | L11: 13,722,537.00 | M11: 0 | N11: 13,722,537.00 | O11: 41,167,611.00 | P11: 0 | Q11: 0
A12: FSCRI_RI_519 | B12: POLITECNICO DI MILANO | C12: 11.ISTRUZIONE E FORMAZIONE | D12: 11.01 STRUTTURE EDUCATIVE E FORMATIVE | E12: D45E22000140005 | F12: REALIZZAZIONE EDIFICI E AULE NEL NUOVO CAMPUS DEL POLITECNICO A BOVISA – MILANO | G12: 68,000,000.00 | H12: 30,000,000.00 | I12: 38,000,000.00 | K12: 441,176.00 | L12: 3,529,410.00 | M12: 7,058,820.00 | N12: 8,823,520.00 | O12: 10,147,074.00 | P12: 0 | Q12: 0
A13: FSCRI_RI_521 | B13: FERROVIENORD SPA | C13: 08.RIQUALIFICAZIONE URBANA | D13: 08.01 EDILIZIA E SPAZI PUBBLICI | E13: E41G23000230001 | F13: PROGETTO FILI – RIQUALIFICAZIONE URBANA A BUSTO ARSIZIO | G13: 26,000,000.00 | H13: 26,000,000.00 | K13: 155,000.00 | L13: 800,000.00 | M13: 1,895,000.00 | N13: 2,558,000.00 | O13: 12,114,000.00 | P13: 7,554,000.00 | Q13: 924,000.00
A14: FSCRI_RI_548 | B14: UNIVERSITA' DEGLI STUDI DI PAVIA | C14: 08.RIQUALIFICAZIONE URBANA | D14: 08.01 EDILIZIA E SPAZI PUBBLICI | E14: F11B21006970005 | F14: RIGENERAZIONE URBANA DEL POLO DI CHIMICA E SCIENZE DEL FARMACO DELL’UNIVERSITÀ DI PAVIA | G14: 10,000,000.00 | H14: 5,500,000.00 | I14: 4,500,000.00 | M14: 137,500.00 | N14: 1,512,500.00 | O14: 3,300,000.00 | P14: 550,000.00 | Q14: 0
A15: FSCRI_RI_628 | B15: REGIONE LOMBARDIA ATTRAVERSO LA SUA SOCIETA' IN HOUSE ARIA SPA | C15: 08.RIQUALIFICAZIONE URBANA | D15: 08.01 EDILIZIA E SPAZI PUBBLICI | E15: G45B23000700003 | F15: RIQUALIFICAZIONE COMPLESSO IMMOBILIARE “PALAZZO SISTEMA” SEDE DEGLI ENTI DEL SISTEMA REGIONALE | G15: 298,000,000.00 | H15: 152,103,522.43 | I15: 145,896,477.57 | K15: 1,600,000.00 | L15: 2,200,000.00 | M15: 26,104,000.00 | N15: 58,240,000.00 | O15: 39,052,000.00 | P15: 24,907,522.43
A16: FSCRI_RI_1638 | B16: ANAS S.p.A. | C16: 07.TRASPORTI E MOBILITÀ | D16: 07.01 TRASPORTO STRADALE | E16: F57H16001660001 | F16: SS12 NUOVO IMPALCATO STRADALE IN SOSTITUZIONE DI QUELLI ESISTENTI SUL PO AD OSTIGLIA E REVERE | G16: 60,000,000.00 | H16: 56,500,000.00 | I16: 3,500,000.00 | K16: 0 | L16: 0 | M16: 3,000,000.00 | N16: 26,750,000.00 | O16: 26,750,000.00 | P16: 0 | Q16: 0
